Department Family,Entity,Date,Expense Type,Expense Area,Supplier,Transaction Number,Amount,,
DOH,London Ambulance Service NHS Trust,01/03/2018,Contract Labour,Vehicle Resouce Centre,Churchill Contract Services Ltd,378502,"75,748.76",,
DOH,London Ambulance Service NHS Trust,01/03/2018,Occupational Health Fees,Staff Support,People Asset Management Ltd,379590,"77,269.40",,
DOH,London Ambulance Service NHS Trust,01/03/2018,Medical & Surgical Items,South Area Managed Stores,Physio-Control Uk Sales Ltd,379616,"29,280.00",,
DOH,London Ambulance Service NHS Trust,01/03/2018,Medical & Surgical Items,South Area Managed Stores,Physio-Control Uk Sales Ltd,379618,"27,384.00",,
DOH,London Ambulance Service NHS Trust,01/03/2018,Cleaning Of Vehicles Makeready,Corporate Logistics,Interserve Hospital Services,381668,"258,074.86",,
DOH,London Ambulance Service NHS Trust,07/03/2018,Technical Support - Contract,Capita Contract,Capita Secure Information Solutions Ltd,381879,"58,898.58",,              
DOH,London Ambulance Service NHS Trust,07/03/2018,Vehicles,Capital,S & B Commercials Plc,382005,"36,855.60",,
DOH,London Ambulance Service NHS Trust,01/03/2018,Buildings,Capital,Coniston Limited,382388,"66,000.00",,
DOH,London Ambulance Service NHS Trust,01/03/2018,Rent,Union Street,Dron & Wright,382395,"68,725.00",,
DOH,London Ambulance Service NHS Trust,01/03/2018,Service Charges,Union Street,Dron & Wright,382395,"22,871.88",,
DOH,London Ambulance Service NHS Trust,14/03/2018,Cleaning Of Premises,Estate Management,Lakethorne Ltd,382399,"87,508.65",,
DOH,London Ambulance Service NHS Trust,07/03/2018,Phone & Fax Calls,Networks,Bt Plc,382402,"70,708.50",,
DOH,London Ambulance Service NHS Trust,14/03/2018,Rent,Southwark Bridge Road,Zurich Assurance Ltd,382452,"32,018.40",,
DOH,London Ambulance Service NHS Trust,14/03/2018,Service Charges,Southwark Bridge Road,Zurich Assurance Ltd,382452,"12,781.90",,
DOH,London Ambulance Service NHS Trust,01/03/2018,Rent,111 Operations,Bilfinger Gva (Pma321),382459,"60,128.26",,
DOH,London Ambulance Service NHS Trust,01/03/2018,Service Charges,111 Operations,Bilfinger Gva (Pma321),382459,"25,572.00",,
DOH,London Ambulance Service NHS Trust,01/03/2018,Agency Nurses,111 Operations,Hays Specialist Recruitment Ltd,383065,"30,230.36",,
DOH,London Ambulance Service NHS Trust,01/03/2018,Agency Nurses,111 Operations,Hays Specialist Recruitment Ltd,383066,"34,479.16",,
DOH,London Ambulance Service NHS Trust,01/03/2018,Professional Fees,Strategy,Pa Consulting Services Ltd,383086,"39,385.20",,
DOH,London Ambulance Service NHS Trust,01/03/2018,Professional Fees,Strategy,Pa Consulting Services Ltd,383087,"36,802.80",,
DOH,London Ambulance Service NHS Trust,01/03/2018,Taxis & Mini Cabs,Sub-Contracted Transport,Addison Lee,383106,"49,385.66",,
DOH,London Ambulance Service NHS Trust,01/03/2018,Vehicles,Capital,Wilker Auto Conversions,383123,"59,983.00",,
DOH,London Ambulance Service NHS Trust,01/03/2018,Vehicles,Capital,Wilker Auto Conversions,383124,"59,983.00",,
DOH,London Ambulance Service NHS Trust,01/03/2018,Vehicles,Capital,Wilker Auto Conversions,383125,"59,983.00",,
DOH,London Ambulance Service NHS Trust,01/03/2018,Vehicles,Capital,Wilker Auto Conversions,383126,"59,983.00",,
DOH,London Ambulance Service NHS Trust,07/03/2018,Vehicles,Capital,S & B Commercials Plc,383181,"36,855.60",,
DOH,London Ambulance Service NHS Trust,07/03/2018,Vehicles,Capital,S & B Commercials Plc,383182,"36,855.60",,
DOH,London Ambulance Service NHS Trust,07/03/2018,Vehicles,Capital,S & B Commercials Plc,383183,"36,855.60",,
DOH,London Ambulance Service NHS Trust,07/03/2018,Vehicles,Capital,S & B Commercials Plc,383184,"36,855.60",,
DOH,London Ambulance Service NHS Trust,07/03/2018,Vehicles,Capital,S & B Commercials Plc,383185,"36,855.60",,
DOH,London Ambulance Service NHS Trust,07/03/2018,Vehicles,Capital,S & B Commercials Plc,383186,"36,855.60",,
DOH,London Ambulance Service NHS Trust,07/03/2018,Buildings,Capital,Assa Abloy Ltd T/A Abloy Uk,383660,"111,373.44",,
DOH,London Ambulance Service NHS Trust,14/03/2018,Electricity,Estate Management,British Gas,384562,"58,708.58",,
DOH,London Ambulance Service NHS Trust,14/03/2018,Training Accommodation,International Recruitment 1617,The Independents Hotel Reservations Ltd,384627,"37,454.40",,
DOH,London Ambulance Service NHS Trust,14/03/2018,Training Accommodation,International Recruitment 1617,The Independents Hotel Reservations Ltd,384628,"52,627.20",,
DOH,London Ambulance Service NHS Trust,14/03/2018,Computer Hardware,Capital,Northrop Grumman Information Technology,384639,"674,505.00",,
DOH,London Ambulance Service NHS Trust,14/03/2018,Professional Fees,Director Of Finance,Discidium Limited,384772,"59,716.80",,
DOH,London Ambulance Service NHS Trust,14/03/2018,Vehicles,Capital,Physio-Control Uk Sales Ltd,384791,"36,000.00",,
DOH,London Ambulance Service NHS Trust,27/03/2018,Vehicles,Capital,S & B Commercials Plc,384809,"36,855.60",,
DOH,London Ambulance Service NHS Trust,14/03/2018,Rent,Islington Ambulance,City Of London,384841,"55,992.00",,
DOH,London Ambulance Service NHS Trust,27/03/2018,Cleaning Of Vehicles Makeready,Corporate Logistics,Interserve Hospital Services,385073,"258,074.86",,
DOH,London Ambulance Service NHS Trust,14/03/2018,Professional Fees,Director Of Finance,Discidium Limited,385095,"59,716.34",,
DOH,London Ambulance Service NHS Trust,14/03/2018,Vehicles,Capital,Wilker Auto Conversions,385770,"59,983.00",,
DOH,London Ambulance Service NHS Trust,14/03/2018,Vehicles,Capital,Wilker Auto Conversions,385771,"59,983.00",,
DOH,London Ambulance Service NHS Trust,14/03/2018,Private Ambulance Hire,Ops Central - Private Amb,Falck Uk Ambulance Service Ltd,385779,"83,287.03",,
DOH,London Ambulance Service NHS Trust,14/03/2018,Private Ambulance Hire,Ops Central - Private Amb,Falck Uk Ambulance Service Ltd,385780,"92,413.89",,
DOH,London Ambulance Service NHS Trust,14/03/2018,Private Ambulance Hire,Ops Central - Private Amb,Falck Uk Ambulance Service Ltd,385781,"107,355.92",,
DOH,London Ambulance Service NHS Trust,14/03/2018,Private Ambulance Hire,Ops Central - Private Amb,Falck Uk Ambulance Service Ltd,385782,"76,500.06",,
DOH,London Ambulance Service NHS Trust,14/03/2018,Private Ambulance Hire,Ops Central - Private Amb,Falck Uk Ambulance Service Ltd,385783,"72,194.55",,
DOH,London Ambulance Service NHS Trust,16/03/2018,Rent,Cody Road Ambulance Station,Cbre Ltd,385786,"52,590.82",,
DOH,London Ambulance Service NHS Trust,16/03/2018,Service Charges,Cody Road Ambulance Station,Cbre Ltd,385786,"2,905.02",,
DOH,London Ambulance Service NHS Trust,16/03/2018,Rent,Pocock Street,Tlg Llc,385787,"52,770.90",,
DOH,London Ambulance Service NHS Trust,16/03/2018,Professional Fees,Quality & Assurance Management,Discidium Limited,386162,"87,492.00",,
DOH,London Ambulance Service NHS Trust,16/03/2018,Capitalised Software,Capital,Northrop Grumman Information Technology,386193,"25,996.50",,
DOH,London Ambulance Service NHS Trust,16/03/2018,Capitalised Software,Capital,Northrop Grumman Information Technology,386194,"70,584.07",,
DOH,London Ambulance Service NHS Trust,16/03/2018,Capitalised Software,Capital,Northrop Grumman Information Technology,386195,"269,553.90",,
DOH,London Ambulance Service NHS Trust,16/03/2018,Capitalised Software,Capital,Northrop Grumman Information Technology,386196,"27,104.00",,
DOH,London Ambulance Service NHS Trust,16/03/2018,Research Support,Data Sharing Project,University Of Wales Swansea,386233,"28,342.00",,
DOH,London Ambulance Service NHS Trust,15/03/2018,Agency Professional Staff,Im&T Tech Design Authority,Tm Management Solutions Ltd,386421,"50,400.00",,
DOH,London Ambulance Service NHS Trust,15/03/2018,Mobile Phone Rental,Telecommunications,Vodafone Corporate Limited,386425,"283,480.99",,
DOH,London Ambulance Service NHS Trust,16/03/2018,Accident Repairs,Fulham (F2) Station,Jubilee Coachworks Limited,386539,"34,575.28",,
DOH,London Ambulance Service NHS Trust,27/03/2018,Accident Repairs,Romford (K4) Station,R. And J.Motors Ltd,386575,"35,018.59",,
DOH,London Ambulance Service NHS Trust,16/03/2018,Electricity,Estate Management,British Gas,386591,"49,455.76",,
DOH,London Ambulance Service NHS Trust,19/03/2018,Professional Fees,Trust Management,Hunter Healthcare Resourcing Ltd,386746,"25,200.00",,
DOH,London Ambulance Service NHS Trust,21/03/2018,Lease Costs For Ops Vehicles,Non Emergency Transport,Tp Leasing Ltd,386747,"34,424.02",,
DOH,London Ambulance Service NHS Trust,21/03/2018,Lease Costs For Ops Vehicles,Non Emergency Transport,Tp Leasing Ltd,386748,"34,424.02",,
DOH,London Ambulance Service NHS Trust,27/03/2018,Vehicles,Capital,S & B Commercials Plc,386769,"36,855.60",,
DOH,London Ambulance Service NHS Trust,16/03/2018,Electricity,Estate Management,British Gas,386777,"49,265.77",,
DOH,London Ambulance Service NHS Trust,21/03/2018,Vehicles,Capital,Wilker Auto Conversions,387954,"75,748.76",,
DOH,London Ambulance Service NHS Trust,21/03/2018,Vehicles,Capital,Wilker Auto Conversions,388034,"59,983.00",,
DOH,London Ambulance Service NHS Trust,21/03/2018,Vehicles,Capital,Wilker Auto Conversions,388035,"59,983.00",,
DOH,London Ambulance Service NHS Trust,27/03/2018,Vehicle Recovery,Fleet Support Services,The Mansfield Group,388556,"45,038.38",,
DOH,London Ambulance Service NHS Trust,27/03/2018,Contract Labour,Vehicle Resouce Centre,Churchill Contract Services Ltd,388625,"75,748.76",,
DOH,London Ambulance Service NHS Trust,27/03/2018,Vehicles,Capital,Wilker Auto Conversions,388628,"59,983.00",,
DOH,London Ambulance Service NHS Trust,27/03/2018,Vehicles,Capital,Wilker Auto Conversions,388629,"59,983.00",,
DOH,London Ambulance Service NHS Trust,27/03/2018,Vehicles,Capital,Wilker Auto Conversions,388630,"59,983.00",,
DOH,London Ambulance Service NHS Trust,27/03/2018,Tyres,Fleet Support Services,Ats Euromaster Ltd,388645,"57,151.93",,
DOH,London Ambulance Service NHS Trust,23/03/2018,Cleaning Of Vehicles Makeready,Veh Prep Service Expansion,Interserve Hospital Services,388747,"354,106.02",,
DOH,London Ambulance Service NHS Trust,27/03/2018,Course And Conference Fees,Medical Directorate Management,City University,388969,"28,000.00",,
DOH,London Ambulance Service NHS Trust,27/03/2018,Vehicle Recovery,Fleet Support Services,The Mansfield Group,389102,"59,328.30",,
DOH,London Ambulance Service NHS Trust,27/03/2018,Vehicle Recovery,Fleet Support Services,The Mansfield Group,389103,"54,955.32",,
DOH,London Ambulance Service NHS Trust,27/03/2018,Training Accommodation,International Recruitment 1617,The Independents Hotel Reservations Ltd,389108,"63,406.80",,
DOH,London Ambulance Service NHS Trust,27/03/2018,Training Accommodation,International Recruitment 1617,The Independents Hotel Reservations Ltd,389110,"33,372.00",,
DOH,London Ambulance Service NHS Trust,27/03/2018,Training Accommodation,International Recruitment 1617,The Independents Hotel Reservations Ltd,389113,"63,406.80",,
DOH,London Ambulance Service NHS Trust,27/03/2018,Buildings,Capital,Assa Abloy Ltd T/A Abloy Uk,389192,"55,611.60",,
DOH,London Ambulance Service NHS Trust,27/03/2018,Vehicles,Capital,S & B Commercials Plc,389262,"36,855.60",,
DOH,London Ambulance Service NHS Trust,27/03/2018,Vehicles,Capital,S & B Commercials Plc,389263,"36,855.60",,
DOH,London Ambulance Service NHS Trust,27/03/2018,Vehicles,Capital,S & B Commercials Plc,389264,"36,855.60",,
DOH,London Ambulance Service NHS Trust,27/03/2018,Vehicles,Capital,S & B Commercials Plc,389265,"36,855.60",,
DOH,London Ambulance Service NHS Trust,27/03/2018,Vehicles,Capital,S & B Commercials Plc,389266,"36,855.60",,
DOH,London Ambulance Service NHS Trust,27/03/2018,Vehicles,Capital,S & B Commercials Plc,389267,"36,855.60",,
DOH,London Ambulance Service NHS Trust,27/03/2018,Vehicles,Capital,S & B Commercials Plc,389268,"36,855.60",,
DOH,London Ambulance Service NHS Trust,27/03/2018,Vehicles,Capital,S & B Commercials Plc,389269,"36,855.60",,
DOH,London Ambulance Service NHS Trust,27/03/2018,Vehicles,Capital,S & B Commercials Plc,389270,"36,855.60",,
DOH,London Ambulance Service NHS Trust,27/03/2018,Vehicles,Capital,S & B Commercials Plc,389271,"36,855.60",,
DOH,London Ambulance Service NHS Trust,27/03/2018,Vehicles,Capital,S & B Commercials Plc,389272,"36,855.60",,
DOH,London Ambulance Service NHS Trust,27/03/2018,Vehicles,Capital,S & B Commercials Plc,389273,"36,855.60",,
DOH,London Ambulance Service NHS Trust,27/03/2018,Vehicles,Capital,S & B Commercials Plc,389274,"36,855.60",,
DOH,London Ambulance Service NHS Trust,27/03/2018,Computer Software Maintenance,Systems,Software Box Ltd,389288,"42,494.40",,
DOH,London Ambulance Service NHS Trust,29/03/2018,Agency Nurses,111 Operations,Hays Specialist Recruitment Ltd,391029,"30,068.95",,
DOH,London Ambulance Service NHS Trust,02/03/2018,Ensign Insurance Debtor,Control Accounts,QBE International Insurance T/A Ensign,51387,"270,690.83",,
DOH,London Ambulance Service NHS Trust,27/03/2018,Medical Gas,Director Of Ops,British Oxygen,51559,"110,443.67",,
DOH,London Ambulance Service NHS Trust,16/03/2018,Fuel,Director Of Ops,BP Oil,51497,"193,123.66",, 
DOH,London Ambulance Service NHS Trust,22/03/2018,Child Care Arrangements,Payroll,Computerserve Vouchers,51523,"30,071.50",,
DOH,London Ambulance Service NHS Trust,29/03/2016,Fuel,Director Of Ops,BP Oil,51878,"224,301.10",,
DOH,London Ambulance Service NHS Trust,29/03/2016,Ensign Insurance Debtor,Control Accounts,QBE,51878,"998,084.20",,
